[Event "Olaine Open Rapid 2018"]
[Site "Olaine"]
[Date "2018.11.25"]
[Round "6.2"]
[White "Mustaps, Matiss"]
[Black "Rogule, Laura"]
[Result "1/2-1/2"]
[WhiteElo "2354"]
[BlackElo "2263"]
[PlyCount "21"]
[EventDate "2018.11.24"]
[EventType "swiss"]
[EventCountry "LAT"]
[TimeControl "600+5"]
[WhiteClock "0:09:19"]
[BlackClock "0:08:55"]

1. e4 {[%emt 0:00:00]} c5 {[%emt 0:00:00]} 2. Nf3 {[%emt 0:00:00]} Nc6 {[%emt 0:00:00]} 3. d4 {[%emt 0:00:03]} cxd4 {[%emt 0:00:00]} 4. Nxd4 {[%emt 0:00:02]} Nf6 {[%emt 0:00:01]} 5. Nc3 {[%emt 0:00:00]} d6 {[%emt 0:00:02]} 6. Bc4 {[%emt 0:00:01]} Qb6 {[%emt 0:00:05]} 7. Nb3 {[%emt 0:00:47]} e6 {[%emt 0:00:04]} 8. O-O {[%emt 0:00:04]} Be7 {[%emt 0:00:02]} 9. Kh1 {[%emt 0:00:10]} Qc7 {[%emt 0:00:54]} 10. f4 {[%emt 0:00:23]} a6 {[%emt 0:00:23]} 11. a3 {[%emt 0:00:30]} 1/2-1/2

[Event "Olaine Open Rapid 2018"]
[Site "Olaine"]
[Date "2018.11.25"]
[Round "6.4"]
[White "Smorodinskis, Igors"]
[Black "Dzjuba, Vsevolod"]
[Result "1/2-1/2"]
[WhiteElo "2209"]
[BlackElo "2238"]
[PlyCount "79"]
[EventDate "2018.11.24"]
[EventType "swiss"]
[EventCountry "LAT"]
[TimeControl "600+5"]
[WhiteClock "0:02:33"]
[BlackClock "0:05:52"]

1. d4 {[%emt 0:00:00]} Nf6 {[%emt 0:00:00]} 2. c4 {[%emt 0:00:00]} g6 {[%emt 0:00:00]} 3. Nc3 {[%emt 0:00:01]} d5 {[%emt 0:00:00]} 4. cxd5 {[%emt 0:00:04]} Nxd5 {[%emt 0:00:02]} 5. e4 {[%emt 0:00:02]} Nxc3 {[%emt 0:00:01]} 6. bxc3 {[%emt 0:00:00]} Bg7 {[%emt 0:00:02]} 7. Bc4 {[%emt 0:00:02]} c5 {[%emt 0:00:04]} 8. Ne2 {[%emt 0:00:01]} O-O {[%emt 0:00:04]} 9. O-O {[%emt 0:00:01]} Nc6 {[%emt 0:00:18]} 10. Be3 {[%emt 0:00:02]} Qc7 {[%emt 0:00:38]} 11. Rc1 {[%emt 0:00:02]} b6 {[%emt 0:00:21]} 12. Qa4 {[%emt 0:00:11]} e6 {[%emt 0:00:34]} 13. Qa3 {[%emt 0:00:29]} Bb7 {[%emt 0:00:31]} 14. Rfd1 {[%emt 0:00:21]} Na5 {[%emt 0:00:31]} 15. Bd3 {[%emt 0:00:02]} Rac8 {[%emt 0:01:40]} 16. Bf4 {[%emt 0:00:12]} e5 {[%emt 0:00:14]} 17. Bg3 {[%emt 0:00:08]} Qe7 {[%emt 0:00:05]} 18. d5 {[%emt 0:00:08]} f5 {[%emt 0:00:16]} 19. f3 {[%emt 0:00:06]} Rcd8 {[%emt 0:00:43]} 20. c4 {[%emt 0:00:19]} Bc8 {[%emt 0:00:09]} 21. Bf2 {[%emt 0:00:32]} h5 {[%emt 0:00:19]} 22. Nc3 {[%emt 0:00:16]} h4 {[%emt 0:00:12]} 23. Rf1 {[%emt 0:00:53]} Bh6 {[%emt 0:00:07]} 24. Rcd1 {[%emt 0:00:09]} Bf4 {[%emt 0:00:10]} 25. Ne2 {[%emt 0:00:19]} Bg5 {[%emt 0:00:12]} 26. Qc3 {[%emt 0:00:02]} Nb7 {[%emt 0:00:11]} 27. Qa3 {[%emt 0:00:05]} Nd6 {[%emt 0:00:02]} 28. Nc3 {[%emt 0:00:20]} Kg7 {[%emt 0:00:24]} 29. Nb5 {[%emt 0:00:02]} Nxb5 {[%emt 0:00:06]} 30. cxb5 {[%emt 0:00:01]} fxe4 {[%emt 0:00:36]} 31. Bxe4 {[%emt 0:00:09]} Rd6 {[%emt 0:00:07]} 32. Qc3 {[%emt 0:00:41]} Bf4 {[%emt 0:00:08]} 33. a4 {[%emt 0:00:08]} Qg5 {[%emt 0:00:07]} 34. Kh1 {[%emt 0:00:10]} Rh8 {[%emt 0:00:54]} 35. Rg1 {[%emt 0:00:21]} Bg3 {[%emt 0:00:03]} 36. Qd2 {[%emt 0:00:18]} Bf4 {[%emt 0:00:19]} 37. Qe1 {[%emt 0:00:01]} Qf6 {[%emt 0:00:16]} 38. a5 {[%emt 0:00:22]} g5 {[%emt 0:00:15]} 39. axb6 {[%emt 0:00:19]} axb6 {[%emt 0:00:01]} 40. Ra1 {[%emt 0:00:09]} 1/2-1/2

[Event "Olaine Open Rapid 2018"]
[Site "Olaine"]
[Date "2018.11.25"]
[Round "6.5"]
[White "Dijokas, Linas"]
[Black "Jazdanovs, Aleksandrs"]
[Result "0-1"]
[WhiteElo "2146"]
[BlackElo "2098"]
[PlyCount "55"]
[EventDate "2018.11.24"]
[EventType "swiss"]
[EventCountry "LAT"]
[TimeControl "600+5"]
[WhiteClock "0:06:13"]
[BlackClock "0:00:08"]

1. e4 {[%emt 0:00:00]} c5 {[%emt 0:00:00]} 2. Nc3 {[%emt 0:00:00]} d6 {[%emt 0:00:00]} 3. f4 {[%emt 0:00:00]} Nc6 {[%emt 0:00:01]} 4. Nf3 {[%emt 0:00:00]} g6 {[%emt 0:00:01]} 5. Bc4 {[%emt 0:00:01]} Bg7 {[%emt 0:00:02]} 6. O-O {[%emt 0:00:06]} e6 {[%emt 0:00:02]} 7. f5 {[%emt 0:00:04]} gxf5 {[%emt 0:00:15]} 8. exf5 {[%emt 0:00:28]} d5 {[%emt 0:00:02]} 9. fxe6 {[%emt 0:00:28]} Bxe6 {[%emt 0:00:24]} 10. Bb5 {[%emt 0:00:12]} Nge7 {[%emt 0:00:08]} 11. d3 {[%emt 0:00:14]} Qb6 {[%emt 0:00:25]} 12. Bxc6+ {[%emt 0:00:06]} Nxc6 {[%emt 0:00:12]} 13. Ng5 {[%emt 0:00:51]} O-O-O {[%emt 0:00:14]} 14. Nxf7 {[%emt 0:00:48]} Bxf7 {[%emt 0:00:01]} 15. Rxf7 {[%emt 0:00:02]} Bd4+ {[%emt 0:00:04]} 16. Kh1 {[%emt 0:00:06]} Ne5 {[%emt 0:00:03]} 17. Rf5 {[%emt 0:00:59]} Qe6 {[%emt 0:00:18]} 18. Qh5 {[%emt 0:02:25]} Rhf8 {[%emt 0:00:15]} 19. Rxf8 {[%emt 0:00:41]} Rxf8 {[%emt 0:00:01]} 20. Bh6 {[%emt 0:01:40]} Rf6 {[%emt 0:01:40]} 21. Bg7 {[%emt 0:00:20]} Rf5 {[%emt 0:00:30]} 22. Qxh7 {[%emt 0:00:27]} Qf7 {[%emt 0:00:26]} 23. Qh8+ {[%emt 0:00:17]} Kd7 {[%emt 0:00:05]} 24. Qh3 {[%emt 0:00:34]} Kc6 {[%emt 0:00:11]} 25. g3 {[%emt 0:00:21]} Rf2 {[%emt 0:00:12]} 26. Qc8+ {[%emt 0:00:17]} Kb6 {[%emt 0:00:14]} 27. Na4+ {[%emt 0:00:40]} Ka6 {[%emt 0:00:16]} 28. Nxc5+ {[%emt 0:00:08]} 0-1

[Event "Olaine Open Rapid 2018"]
[Site "Olaine"]
[Date "2018.11.25"]
[Round "6.6"]
[White "Germanovs, Georgijs"]
[Black "Volodins, Igors"]
[Result "0-1"]
[WhiteElo "1553"]
[BlackElo "2186"]
[PlyCount "146"]
[EventDate "2018.11.24"]
[EventType "swiss"]
[EventCountry "LAT"]
[TimeControl "600+5"]
[WhiteClock "0:01:52"]
[BlackClock "0:03:28"]

1. e4 {[%emt 0:00:00]} c6 {[%emt 0:00:00]} 2. d4 {[%emt 0:00:01]} d5 {[%emt 0:00:00]} 3. e5 {[%emt 0:00:02]} Bf5 {[%emt 0:00:00]} 4. c4 {[%emt 0:00:06]} dxc4 {[%emt 0:00:52]} 5. Bxc4 {[%emt 0:00:05]} e6 {[%emt 0:00:01]} 6. Nc3 {[%emt 0:00:02]} Nd7 {[%emt 0:00:15]} 7. Nf3 {[%emt 0:00:05]} Nb6 {[%emt 0:00:02]} 8. Bd3 {[%emt 0:00:04]} Ne7 {[%emt 0:00:44]} 9. Bg5 {[%emt 0:00:09]} Bxd3 {[%emt 0:00:24]} 10. Qxd3 {[%emt 0:00:04]} h6 {[%emt 0:00:01]} 11. Bh4 {[%emt 0:00:07]} g5 {[%emt 0:00:23]} 12. Nxg5 {[%emt 0:00:25]} hxg5 {[%emt 0:00:02]} 13. Bxg5 {[%emt 0:00:02]} Qd7 {[%emt 0:00:08]} 14. Ne4 {[%emt 0:00:06]} Ned5 {[%emt 0:00:02]} 15. a3 {[%emt 0:01:18]} Be7 {[%emt 0:02:14]} 16. Bxe7 {[%emt 0:00:06]} Kxe7 {[%emt 0:00:08]} 17. Qc2 {[%emt 0:00:17]} Rag8 {[%emt 0:00:10]} 18. Qc5+ {[%emt 0:00:07]} Kd8 {[%emt 0:00:01]} 19. g3 {[%emt 0:00:22]} Nc8 {[%emt 0:00:19]} 20. Rc1 {[%emt 0:00:18]} Qc7 {[%emt 0:00:19]} 21. O-O {[%emt 0:00:23]} Rh3 {[%emt 0:01:02]} 22. f3 {[%emt 0:00:48]} Qb6 {[%emt 0:00:44]} 23. b4 {[%emt 0:00:32]} Qa6 {[%emt 0:00:24]} 24. Qa5+ {[%emt 0:02:03]} Qxa5 {[%emt 0:00:14]} 25. bxa5 {[%emt 0:00:02]} Rh6 {[%emt 0:01:23]} 26. a6 {[%emt 0:00:05]} bxa6 {[%emt 0:01:08]} 27. Rxc6 {[%emt 0:00:04]} Ncb6 {[%emt 0:00:16]} 28. Nc5 {[%emt 0:00:22]} a5 {[%emt 0:00:15]} 29. Nb7+ {[%emt 0:00:02]} Kd7 {[%emt 0:00:04]} 30. Nxa5 {[%emt 0:00:05]} Nf4 {[%emt 0:00:19]} 31. Rc2 {[%emt 0:00:38]} Nfd5 {[%emt 0:00:05]} 32. Rfc1 {[%emt 0:00:09]} Rc8 {[%emt 0:00:10]} 33. Rxc8 {[%emt 0:00:47]} Nxc8 {[%emt 0:00:01]} 34. Nb7 {[%emt 0:00:05]} Ncb6 {[%emt 0:00:03]} 35. Nc5+ {[%emt 0:00:02]} Ke7 {[%emt 0:00:02]} 36. Ne4 {[%emt 0:00:10]} Rh8 {[%emt 0:00:09]} 37. Nd6 {[%emt 0:00:06]} f6 {[%emt 0:00:06]} 38. f4 {[%emt 0:00:03]} fxe5 {[%emt 0:00:03]} 39. dxe5 {[%emt 0:00:03]} Rb8 {[%emt 0:00:08]} 40. Rb1 {[%emt 0:00:19]} Rd8 {[%emt 0:00:03]} 41. Kg2 {[%emt 0:00:22]} Ne3+ {[%emt 0:00:11]} 42. Kf3 {[%emt 0:00:04]} Nf5 {[%emt 0:00:01]} 43. Rd1 {[%emt 0:00:16]} Nxd6 {[%emt 0:00:03]} 44. Rxd6 {[%emt 0:00:04]} Rxd6 {[%emt 0:00:02]} 45. exd6+ {[%emt 0:00:01]} Kxd6 {[%emt 0:00:01]} 46. h4 {[%emt 0:00:02]} Ke7 {[%emt 0:00:25]} 47. Ke4 {[%emt 0:00:11]} Nc4 {[%emt 0:00:01]} 48. a4 {[%emt 0:00:01]} a5 {[%emt 0:00:01]} 49. Kd4 {[%emt 0:00:06]} Nb6 {[%emt 0:00:00]} 50. Kc5 {[%emt 0:00:02]} Nxa4+ {[%emt 0:00:01]} 51. Kb5 {[%emt 0:00:00]} Nc3+ {[%emt 0:00:02]} 52. Kxa5 Ne2 {[%emt 0:00:01]} 53. g4 {[%emt 0:00:17]} Nxf4 {[%emt 0:00:01]} 54. Kb4 {[%emt 0:00:01]} Ng2 {[%emt 0:00:02]} 55. h5 {[%emt 0:00:04]} Kf6 {[%emt 0:00:01]} 56. Kc4 {[%emt 0:00:02]} Ne3+ {[%emt 0:00:01]} 57. Kd4 {[%emt 0:00:02]} Nxg4 {[%emt 0:00:02]} 58. Ke4 {[%emt 0:00:04]} Kg5 {[%emt 0:00:06]} 59. h6 {[%emt 0:00:03]} Kxh6 {[%emt 0:00:02]} 60. Kf4 {[%emt 0:00:01]} Kh5 {[%emt 0:00:01]} 61. Ke4 {[%emt 0:00:03]} Kg5 {[%emt 0:00:00]} 62. Kf3 {[%emt 0:00:01]} Kf5 {[%emt 0:00:01]} 63. Kg3 {[%emt 0:00:01]} e5 {[%emt 0:00:01]} 64. Kf3 {[%emt 0:00:01]} e4+ {[%emt 0:00:01]} 65. Kg3 {[%emt 0:00:01]} Kg5 {[%emt 0:00:01]} 66. Kg2 {[%emt 0:00:01]} Kf4 {[%emt 0:00:00]} 67. Kg1 {[%emt 0:00:03]} Kf3 {[%emt 0:00:02]} 68. Kf1 {[%emt 0:00:00]} Nh2+ {[%emt 0:00:03]} 69. Kg1 {[%emt 0:00:02]} e3 {[%emt 0:00:03]} 70. Kxh2 {[%emt 0:00:02]} e2 {[%emt 0:00:01]} 71. Kh3 {[%emt 0:00:02]} e1=Q {[%emt 0:00:03]} 72. Kh2 {[%emt 0:00:01]} Qf2+ {[%emt 0:00:03]} 73. Kh3 {[%emt 0:00:02]} Qg3# {[%emt 0:00:12]} 0-1

[Event "Olaine Open Rapid 2018"]
[Site "Olaine"]
[Date "2018.11.25"]
[Round "7.3"]
[White "Jazdanovs, Aleksandrs"]
[Black "Ramma, Kaspars"]
[Result "0-1"]
[WhiteElo "2098"]
[BlackElo "2107"]
[PlyCount "58"]
[EventDate "2018.11.24"]
[EventType "swiss"]
[EventCountry "LAT"]
[TimeControl "600+5"]
[WhiteClock "0:01:39"]
[BlackClock "0:05:35"]

1. e4 {[%emt 0:00:00]} d5 {[%emt 0:00:00]} 2. exd5 {[%emt 0:00:00]} Qxd5 {[%emt 0:00:00]} 3. Nc3 {[%emt 0:00:01]} Qd6 {[%emt 0:00:01]} 4. d4 {[%emt 0:00:05]} Nf6 {[%emt 0:00:06]} 5. Bd3 {[%emt 0:00:03]} Bg4 {[%emt 0:00:29]} 6. f3 {[%emt 0:00:05]} Bh5 {[%emt 0:00:12]} 7. Nge2 {[%emt 0:00:02]} Nc6 {[%emt 0:00:31]} 8. Bf4 {[%emt 0:00:05]} Qd7 {[%emt 0:00:03]} 9. Bb5 {[%emt 0:02:07]} e6 {[%emt 0:00:54]} 10. Qd2 {[%emt 0:00:09]} a6 {[%emt 0:00:14]} 11. Ba4 {[%emt 0:00:13]} b5 {[%emt 0:00:19]} 12. Bb3 {[%emt 0:00:01]} Bb4 {[%emt 0:00:10]} 13. O-O-O {[%emt 0:00:45]} Na5 {[%emt 0:00:52]} 14. a3 {[%emt 0:00:16]} Nxb3+ {[%emt 0:00:12]} 15. cxb3 {[%emt 0:00:02]} Be7 {[%emt 0:00:58]} 16. Be5 {[%emt 0:00:16]} Bg6 {[%emt 0:00:56]} 17. Nf4 {[%emt 0:00:10]} b4 {[%emt 0:02:12]} 18. axb4 {[%emt 0:00:05]} Bxb4 {[%emt 0:00:01]} 19. Nxg6 {[%emt 0:00:13]} hxg6 {[%emt 0:00:03]} 20. Bxf6 {[%emt 0:00:12]} gxf6 {[%emt 0:00:02]} 21. d5 {[%emt 0:00:13]} e5 {[%emt 0:00:22]} 22. f4 {[%emt 0:00:07]} O-O {[%emt 0:00:56]} 23. fxe5 {[%emt 0:00:24]} fxe5 {[%emt 0:00:01]} 24. Qg5 {[%emt 0:00:01]} Bxc3 {[%emt 0:00:13]} 25. bxc3 {[%emt 0:00:02]} Qb5 {[%emt 0:00:13]} 26. Kc2 {[%emt 0:00:24]} Rab8 {[%emt 0:00:03]} 27. Rb1 {[%emt 0:00:24]} Qxd5 {[%emt 0:00:24]} 28. Rhe1 {[%emt 0:00:01]} Rfd8 {[%emt 0:00:16]} 29. Red1 {[%emt 0:00:24]} Qe4+ {[%emt 0:00:03]} 0-1

[Event "Olaine Open Rapid 2018"]
[Site "Olaine"]
[Date "2018.11.25"]
[Round "7.4"]
[White "Rogule, Laura"]
[Black "Smorodinskis, Igors"]
[Result "1-0"]
[WhiteElo "2263"]
[BlackElo "2209"]
[PlyCount "99"]
[EventDate "2018.11.24"]
[EventType "swiss"]
[EventCountry "LAT"]
[TimeControl "600+5"]
[WhiteClock "0:00:24"]
[BlackClock "0:00:27"]

1. c4 {[%emt 0:00:00]} Nf6 {[%emt 0:00:00]} 2. Nf3 {[%emt 0:00:08]} g6 {[%emt 0:00:00]} 3. g3 {[%emt 0:00:07]} Bg7 {[%emt 0:00:00]} 4. Bg2 {[%emt 0:00:01]} O-O {[%emt 0:00:00]} 5. O-O {[%emt 0:00:10]} d6 {[%emt 0:00:00]} 6. d4 {[%emt 0:00:05]} c5 {[%emt 0:00:00]} 7. Nc3 {[%emt 0:00:10]} Nc6 {[%emt 0:00:01]} 8. d5 {[%emt 0:00:24]} Na5 {[%emt 0:00:01]} 9. Nd2 {[%emt 0:00:28]} a6 {[%emt 0:00:02]} 10. a4 {[%emt 0:00:33]} Rb8 {[%emt 0:00:12]} 11. Qc2 {[%emt 0:00:44]} Bd7 {[%emt 0:00:05]} 12. e4 {[%emt 0:00:16]} e5 {[%emt 0:00:43]} 13. Qd3 {[%emt 0:02:14]} b6 {[%emt 0:01:20]} 14. Ra3 {[%emt 0:00:16]} Ne8 {[%emt 0:00:21]} 15. h3 {[%emt 0:01:03]} Nxc4 {[%emt 0:00:59]} 16. Nxc4 {[%emt 0:00:41]} b5 17. axb5 {[%emt 0:00:05]} axb5 {[%emt 0:00:01]} 18. Na5 {[%emt 0:00:41]} b4 {[%emt 0:00:04]} 19. Ra1 {[%emt 0:00:32]} bxc3 {[%emt 0:00:02]} 20. Qxc3 {[%emt 0:00:25]} Ra8 {[%emt 0:00:37]} 21. b4 {[%emt 0:00:10]} cxb4 {[%emt 0:01:24]} 22. Qxb4 {[%emt 0:00:03]} Rb8 {[%emt 0:00:15]} 23. Qd2 {[%emt 0:00:18]} Rc8 {[%emt 0:01:15]} 24. Ba3 {[%emt 0:00:08]} f5 {[%emt 0:00:23]} 25. exf5 {[%emt 0:00:17]} Bxf5 {[%emt 0:00:11]} 26. Nc6 {[%emt 0:00:11]} Qc7 {[%emt 0:01:17]} 27. g4 {[%emt 0:00:12]} Bd7 {[%emt 0:00:13]} 28. Ne7+ {[%emt 0:00:03]} Kh8 {[%emt 0:00:01]} 29. Rac1 {[%emt 0:00:05]} Qd8 {[%emt 0:00:05]} 30. Nxc8 {[%emt 0:00:05]} Bxc8 {[%emt 0:00:01]} 31. Bb4 {[%emt 0:00:34]} Ba6 {[%emt 0:00:13]} 32. Rfe1 {[%emt 0:00:15]} Qb6 {[%emt 0:00:01]} 33. Rc6 {[%emt 0:00:06]} Qb7 {[%emt 0:00:12]} 34. Bxd6 {[%emt 0:00:04]} Nxd6 {[%emt 0:00:05]} 35. Rxd6 {[%emt 0:00:01]} e4 {[%emt 0:00:37]} 36. Rxe4 {[%emt 0:00:27]} Qb5 {[%emt 0:00:26]} 37. Re1 {[%emt 0:00:14]} Bb7 {[%emt 0:00:15]} 38. Rde6 {[%emt 0:00:10]} Bc8 {[%emt 0:00:07]} 39. Re7 {[%emt 0:00:10]} Qc5 {[%emt 0:00:07]} 40. R7e4 {[%emt 0:00:21]} h6 {[%emt 0:00:14]} 41. Re8 {[%emt 0:00:15]} Kh7 {[%emt 0:00:07]} 42. Rxf8 {[%emt 0:00:02]} Qxf8 {[%emt 0:00:03]} 43. d6 {[%emt 0:00:01]} Bd7 44. Re7 {[%emt 0:00:02]} Bb5 {[%emt 0:00:12]} 45. d7 {[%emt 0:00:08]} Qd8 {[%emt 0:01:02]} 46. Rf7 {[%emt 0:00:07]} Kg8 {[%emt 0:00:04]} 47. Qd5 {[%emt 0:00:06]} Qa5 {[%emt 0:00:21]} 48. d8=Q+ {[%emt 0:00:03]} Qxd8 {[%emt 0:00:01]} 49. Qxd8+ {[%emt 0:00:01]} Kxf7 {[%emt 0:00:01]} 50. Bd5# {[%emt 0:00:01]} 1-0

[Event "Olaine Open Rapid 2018"]
[Site "Olaine"]
[Date "2018.11.25"]
[Round "7.5"]
[White "Dzjuba, Vsevolod"]
[Black "Levchenkov, Vitaly"]
[Result "0-1"]
[WhiteElo "2238"]
[BlackElo "2150"]
[PlyCount "86"]
[EventDate "2018.11.24"]
[EventType "swiss"]
[EventCountry "LAT"]
[TimeControl "600+5"]
[WhiteClock "0:01:11"]
[BlackClock "0:00:14"]

1. e4 {[%emt 0:00:00]} c5 {[%emt 0:00:00]} 2. Nf3 {[%emt 0:00:00]} Nc6 {[%emt 0:00:00]} 3. Bb5 {[%emt 0:00:02]} g6 {[%emt 0:00:00]} 4. O-O {[%emt 0:00:14]} Bg7 {[%emt 0:00:00]} 5. Re1 {[%emt 0:00:04]} e5 {[%emt 0:00:08]} 6. b4 {[%emt 0:00:22]} Nd4 {[%emt 0:01:03]} 7. Nxd4 {[%emt 0:00:27]} cxd4 {[%emt 0:00:02]} 8. c3 {[%emt 0:00:19]} Ne7 {[%emt 0:00:36]} 9. cxd4 {[%emt 0:01:01]} exd4 {[%emt 0:00:02]} 10. d3 {[%emt 0:01:25]} O-O {[%emt 0:01:15]} 11. Bg5 {[%emt 0:00:51]} h6 {[%emt 0:00:02]} 12. Bh4 {[%emt 0:00:01]} d6 {[%emt 0:00:46]} 13. Nd2 {[%emt 0:00:19]} a6 {[%emt 0:00:22]} 14. Ba4 {[%emt 0:00:13]} g5 {[%emt 0:01:06]} 15. Bg3 {[%emt 0:00:02]} b5 {[%emt 0:00:04]} 16. Bb3 {[%emt 0:00:02]} Ng6 {[%emt 0:00:08]} 17. Qh5 {[%emt 0:00:46]} Kh7 {[%emt 0:00:31]} 18. Nf3 {[%emt 0:00:29]} Qf6 {[%emt 0:01:49]} 19. h4 {[%emt 0:00:45]} gxh4 {[%emt 0:01:05]} 20. Bxh4 {[%emt 0:00:23]} Nxh4 {[%emt 0:00:14]} 21. Nxh4 {[%emt 0:00:05]} Qg5 {[%emt 0:00:12]} 22. Qxg5 {[%emt 0:01:04]} hxg5 {[%emt 0:00:01]} 23. Nf5 {[%emt 0:00:01]} Be5 {[%emt 0:00:20]} 24. Rac1 {[%emt 0:00:14]} Ra7 {[%emt 0:00:08]} 25. Rc6 {[%emt 0:00:29]} Bd7 {[%emt 0:00:16]} 26. Rb6 {[%emt 0:00:11]} Bxf5 {[%emt 0:00:05]} 27. exf5 {[%emt 0:00:01]} Rc8 {[%emt 0:00:01]} 28. g3 {[%emt 0:00:37]} Kg7 {[%emt 0:00:04]} 29. Kg2 {[%emt 0:00:05]} Rc3 {[%emt 0:00:02]} 30. Rd1 {[%emt 0:00:11]} g4 {[%emt 0:00:11]} 31. Bd5 {[%emt 0:00:25]} Kf6 {[%emt 0:00:02]} 32. Be4 {[%emt 0:00:12]} Rc2 {[%emt 0:00:09]} 33. Rh1 {[%emt 0:00:05]} Rac7 {[%emt 0:00:17]} 34. Rh6+ {[%emt 0:00:37]} Kg5 {[%emt 0:00:22]} 35. Rh4 {[%emt 0:00:15]} Rxa2 {[%emt 0:00:06]} 36. Bd5 {[%emt 0:00:10]} Rd2 {[%emt 0:00:17]} 37. Rb8 {[%emt 0:00:10]} Rcc2 {[%emt 0:00:20]} 38. Rg8+ {[%emt 0:00:06]} Kf6 {[%emt 0:00:01]} 39. Rh6+ {[%emt 0:00:17]} Ke7 {[%emt 0:00:01]} 40. Rxg4 {[%emt 0:00:07]} Rxf2+ {[%emt 0:00:02]} 41. Kg1 {[%emt 0:00:02]} Rfd2 {[%emt 0:00:08]} 42. f6+ {[%emt 0:00:07]} Kd7 {[%emt 0:00:04]} 43. Rh7 {[%emt 0:00:05]} Rc1# {[%emt 0:00:02]} 0-1

[Event "Olaine Open Rapid 2018"]
[Site "Olaine"]
[Date "2018.11.25"]
[Round "7.6"]
[White "Volodins, Igors"]
[Black "Kolasa, Pjotrs"]
[Result "1/2-1/2"]
[WhiteElo "2186"]
[BlackElo "2108"]
[PlyCount "184"]
[EventDate "2018.11.24"]
[EventType "swiss"]
[EventCountry "LAT"]
[TimeControl "600+5"]
[WhiteClock "0:00:21"]
[BlackClock "0:01:14"]

1. g3 {[%emt 0:00:02]} Nf6 {[%emt 0:00:00]} 2. Bg2 {[%emt 0:00:01]} d5 {[%emt 0:00:41]} 3. c4 {[%emt 0:00:12]} dxc4 {[%emt 0:00:12]} 4. Qa4+ {[%emt 0:00:16]} Nbd7 {[%emt 0:00:07]} 5. Nf3 {[%emt 0:00:34]} e6 {[%emt 0:00:15]} 6. O-O {[%emt 0:00:21]} a6 {[%emt 0:00:29]} 7. Qxc4 {[%emt 0:00:03]} b5 {[%emt 0:00:05]} 8. Qc2 {[%emt 0:00:13]} Bb7 {[%emt 0:00:02]} 9. d3 {[%emt 0:00:10]} Bd6 {[%emt 0:00:05]} 10. a4 {[%emt 0:00:04]} O-O {[%emt 0:01:58]} 11. Na3 {[%emt 0:00:25]} Qe7 {[%emt 0:01:57]} 12. axb5 {[%emt 0:00:44]} axb5 {[%emt 0:00:01]} 13. Bd2 {[%emt 0:00:42]} Bxa3 {[%emt 0:00:13]} 14. Rxa3 {[%emt 0:00:14]} Rxa3 {[%emt 0:00:02]} 15. bxa3 {[%emt 0:00:01]} Qxa3 {[%emt 0:00:17]} 16. Qxc7 {[%emt 0:00:03]} Qa8 {[%emt 0:00:52]} 17. Qc3 {[%emt 0:00:27]} Rc8 {[%emt 0:00:07]} 18. Qb2 {[%emt 0:00:01]} Qa4 {[%emt 0:00:08]} 19. Bc3 {[%emt 0:01:25]} Nd5 {[%emt 0:01:13]} 20. Ra1 {[%emt 0:00:52]} Qg4 {[%emt 0:00:17]} 21. h3 {[%emt 0:00:16]} Qg6 {[%emt 0:00:12]} 22. Bd2 {[%emt 0:00:48]} Qf6 {[%emt 0:00:50]} 23. d4 {[%emt 0:00:02]} b4 {[%emt 0:00:12]} 24. e4 {[%emt 0:00:21]} N5b6 {[%emt 0:00:13]} 25. Ne5 {[%emt 0:01:05]} Nxe5 {[%emt 0:01:08]} 26. dxe5 {[%emt 0:00:01]} Qe7 {[%emt 0:00:00]} 27. Bxb4 {[%emt 0:00:38]} Qc7 {[%emt 0:00:01]} 28. Ba5 {[%emt 0:00:09]} Ra8 {[%emt 0:00:00]} 29. Rc1 {[%emt 0:00:18]} Nc4 {[%emt 0:00:03]} 30. Rxc4 {[%emt 0:00:31]} Qxc4 {[%emt 0:00:08]} 31. Qxb7 {[%emt 0:00:01]} Rc8 {[%emt 0:00:30]} 32. Qb4 {[%emt 0:00:11]} Qc1+ {[%emt 0:00:03]} 33. Bf1 {[%emt 0:00:11]} h6 {[%emt 0:00:01]} 34. Qd2 {[%emt 0:00:03]} Qc5 {[%emt 0:00:03]} 35. Bb4 {[%emt 0:00:40]} Qxe5 {[%emt 0:00:03]} 36. Qd3 {[%emt 0:00:03]} Qc7 {[%emt 0:00:15]} 37. Bd6 {[%emt 0:00:02]} Qc6 {[%emt 0:00:01]} 38. e5 {[%emt 0:00:06]} Ra8 {[%emt 0:00:07]} 39. Bg2 {[%emt 0:00:05]} Ra1+ {[%emt 0:00:01]} 40. Kh2 {[%emt 0:00:01]} Qc1 {[%emt 0:00:04]} 41. g4 {[%emt 0:00:08]} Qf4+ {[%emt 0:00:01]} 42. Qg3 {[%emt 0:00:03]} Qc1 {[%emt 0:00:02]} 43. Qe3 {[%emt 0:00:04]} Qg1+ {[%emt 0:00:17]} 44. Kg3 {[%emt 0:00:01]} Qb1 {[%emt 0:00:02]} 45. Qe4 {[%emt 0:00:15]} Qb3+ {[%emt 0:00:06]} 46. Qf3 {[%emt 0:00:02]} Qb1 {[%emt 0:00:07]} 47. Qb7 {[%emt 0:00:03]} Qd3+ {[%emt 0:00:08]} 48. Kh2 {[%emt 0:00:04]} Qd4 {[%emt 0:00:14]} 49. Qc8+ {[%emt 0:00:06]} Kh7 {[%emt 0:00:01]} 50. Qc2+ {[%emt 0:00:02]} g6 {[%emt 0:00:02]} 51. Kg3 {[%emt 0:00:25]} Rd1 {[%emt 0:00:07]} 52. Qe4 {[%emt 0:00:06]} Qc3+ {[%emt 0:00:05]} 53. Kh2 {[%emt 0:00:02]} Re1 {[%emt 0:00:01]} 54. Qf3 {[%emt 0:00:03]} Qxf3 55. Bxf3 {[%emt 0:00:01]} Rb1 {[%emt 0:00:11]} 56. h4 {[%emt 0:00:02]} Kg7 {[%emt 0:00:02]} 57. Be7 {[%emt 0:00:03]} Rb5 {[%emt 0:00:13]} 58. Bf6+ {[%emt 0:00:01]} Kh7 {[%emt 0:00:01]} 59. h5 {[%emt 0:00:03]} Rb4 {[%emt 0:00:03]} 60. Kg3 {[%emt 0:00:03]} Ra4 {[%emt 0:00:01]} 61. Bc6 {[%emt 0:00:04]} Ra3+ {[%emt 0:00:03]} 62. f3 {[%emt 0:00:01]} gxh5 {[%emt 0:00:04]} 63. gxh5 {[%emt 0:00:01]} Ra1 {[%emt 0:00:02]} 64. Be4+ {[%emt 0:00:27]} Kg8 {[%emt 0:00:01]} 65. f4 {[%emt 0:00:13]} Rg1+ {[%emt 0:00:03]} 66. Kf2 {[%emt 0:00:02]} Rg4 {[%emt 0:00:09]} 67. Kf3 {[%emt 0:00:06]} Rg1 {[%emt 0:00:00]} 68. Ke3 {[%emt 0:00:11]} Rg3+ {[%emt 0:00:04]} 69. Bf3 {[%emt 0:00:01]} Rg1 {[%emt 0:00:09]} 70. Be2 {[%emt 0:00:07]} Rg3+ {[%emt 0:00:02]} 71. Ke4 {[%emt 0:00:03]} Rg1 {[%emt 0:00:06]} 72. Kf3 {[%emt 0:00:18]} Rh1 {[%emt 0:00:04]} 73. Kg2 {[%emt 0:00:01]} Re1 {[%emt 0:00:02]} 74. Bg4 {[%emt 0:00:02]} Re4 {[%emt 0:00:13]} 75. Kf3 {[%emt 0:00:03]} Ra4 {[%emt 0:00:03]} 76. f5 {[%emt 0:00:06]} Ra3+ {[%emt 0:00:01]} 77. Ke2 {[%emt 0:00:01]} exf5 {[%emt 0:00:08]} 78. Bxf5 {[%emt 0:00:01]} Ra2+ {[%emt 0:00:09]} 79. Kd3 {[%emt 0:00:01]} Rh2 {[%emt 0:00:08]} 80. Bg4 {[%emt 0:00:07]} Rg2 {[%emt 0:00:07]} 81. Bf3 {[%emt 0:00:01]} Rg1 {[%emt 0:00:02]} 82. Ke4 {[%emt 0:00:01]} Re1+ {[%emt 0:00:03]} 83. Kd5 {[%emt 0:00:02]} Re3 {[%emt 0:00:03]} 84. Bg4 {[%emt 0:00:03]} Rg3 {[%emt 0:00:01]} 85. Bd7 {[%emt 0:00:06]} Rd3+ {[%emt 0:00:05]} 86. Kc6 {[%emt 0:00:01]} Rd1 {[%emt 0:00:18]} 87. e6 {[%emt 0:00:07]} fxe6 {[%emt 0:00:03]} 88. Bxe6+ {[%emt 0:00:01]} Kh7 {[%emt 0:00:06]} 89. Bf5+ {[%emt 0:00:02]} Kg8 {[%emt 0:00:01]} 90. Bg6 {[%emt 0:00:02]} Rd2 {[%emt 0:00:12]} 91. Kc5 {[%emt 0:00:04]} Rd1 {[%emt 0:00:02]} 92. Bd4 {[%emt 0:00:01]} Rxd4 {[%emt 0:00:05]} 1/2-1/2